Cogmind - Beta 15 @@@ ROGUE MODE // 2025.08.08 @ 15:01:33 Player: Inverisimilidude Result: Destroyed by S-10 Pest with Light Assault Rifle Performance ------------- Evolutions (0) 0 Regions Visited (4) 800 Robots Destroyed (17) 85 Value Destroyed (395) 395 Prototype IDs (25) 500 Alien Tech Used (0) 0 Bonus (300) 300 TOTAL SCORE: 2080 Bonus ------- Aligned with FarCom 300 Cogmind --------- Core Integrity 0/250 Matter 230/300 Energy 100/100 System Corruption 4% Temperature Cool (0) Movement Rolling (140) Ox4 Location -9/Mines Parts ------- > --- POWER (1) -------- (None) > --- PROPULSION (2) --- Light Treads Wheel > --- UTILITY (2) ------ High-capacity Storage Unit Light Armor Plating > --- WEAPON (2) ------- Light Assault Rifle Light Assault Rifle > --- INVENTORY (20) --- Light Ion Engine Light Treads Wheel Compact Wheel Compact Wheel High-capacity Matter Pod (200) Improved Terrain Scanner Army-in-a-Box (30/30) Medium Laser Medium Laser Medium Laser Light Assault Rifle Mining Claw Peak State ------------ > --- POWER ------------ Light Ion Engine > --- PROPULSION ------- Light Treads Wheel > --- UTILITY ---------- High-capacity Storage Unit Light Armor Plating > --- WEAPON ----------- Light Assault Rifle Light Assault Rifle > --- INVENTORY -------- Light Ion Engine Light Treads Wheel Compact Wheel Compact Wheel High-capacity Matter Pod Improved Terrain Scanner Army-in-a-Box Medium Laser Medium Laser Medium Laser Light Assault Rifle Mining Claw [Rating: 13] Favorites ----------- Power Light Ion Engine Engine Light Ion Engine Propulsion Light Treads Treads Light Treads Wheel Wheel Utility Seismic Detector Device Seismic Detector Storage High-capacity Storage Unit Protection Light Armor Plating Weapon Light Assault Rifle Energy Gun Medium Laser Ballistic Gun Light Assault Rifle Ballistic Cannon Light Cannon Slashing Weapon Mining Claw Build | -11 -10 -10 -10 -9 ------- Run | Yrd Mat Min Exi Min Slots Evolved . | . . . . . Power . | . . . . . Propulsion . | . . . . . Utility . | . . . . . Weapon . | . . . . . Parts Attached 21 | 8 6 3 2 2 Power 3 | 1 1 1 . . Engine 3 | 1 1 1 . . Core . | . . . . . Reactor . | . . . . . Propulsion 6 | 3 1 1 1 . Treads 3 | 1 1 1 . . Leg . | . . . . . Wheel 3 | 2 . . 1 . Hover . | . . . . . Flight . | . . . . . Utility 5 | 2 2 . 1 . Device 1 | 1 . . . . Storage 3 | 1 2 . . . Processor . | . . . . . Hackware . | . . . . . Protection 1 | . . . 1 . Artifact . | . . . . . Weapon 7 | 2 2 1 . 2 Energy Gun 2 | 1 . 1 . . Energy Cannon . | . . . . . Ballistic Gun 3 | 1 . . . 2 Ballistic Cannon 1 | . 1 . . . Launcher . | . . . . . Special Weapon . | . . . . . Impact Weapon . | . . . . . Slashing Weapon 1 | . 1 . . . Piercing Weapon . | . . . . . Special Melee Weapon . | . . . . . Unidentified Prototypes . | . . . . . Parts Lost 6 | . 3 2 . 1 Power 2 | . 1 . . 1 Propulsion 2 | . 1 1 . . Utility . | . . . . . Weapon 2 | . 1 1 . . Highest Loss Streak 1 | . 1 1 . 1 To Critical Strikes . | . . . . . Average Backups 15 | 3 12 17 17 13 Power . | . . . 1 1 Propulsion 4 | 1 5 5 4 4 Utility 4 | . 2 5 4 3 Weapon 5 | . 3 5 6 5 Tool/Special . | . . . . . Unused Backups 14 | . 1 1 2 10 Power 1 | . . . . 1 Propulsion 3 | . . . . 3 Utility 7 | . 1 1 2 3 Weapon 3 | . . . . 3 Tool/Special . | . . . . . Average Slot Usage (%) 93 | . 99 99 71 92 Engine 14 | . 14 14 14 14 Treads 20 | . 13 24 23 14 Wheel 7 | . 14 3 4 14 Device 12 | . 14 14 8 . Storage 14 | . 14 14 14 14 Protection 1 | . . . 5 14 Energy Gun 7 | . 5 13 . . Ballistic Gun 9 | . 10 14 . 21 Ballistic Cannon 3 | . 10 . . . Peak Build Rating 13 | 7 8 9 12 13 Average Rating 8 | 5 7 8 8 12 On Entrance 7 | . 7 8 9 12 Naked Turns . | . . . . . Heaviest Build 48 | 14 48 48 46 . Greatest Support 40 | 26 10 40 40 . Greatest Overweight (x) 4 | 1 4 4 4 . Average Overweight (x) 2 | . 2 1 2 . Largest Inventory Capacity 20 | 8 20 20 20 20 Average Capacity 17 | 7 15 20 20 20 Most Carried 20 | 6 16 18 20 19 Average Carried 15 | 3 12 17 19 18 Final Capacity 20 | 8 20 20 20 20 Final Carried 20 | 6 15 18 20 18 Class Distribution -------------------- 55% | Mutant 44% | Scavenger-Mutant Dominant Class ---------------- Mutant | -10/Materials Scavenger-Mutant | -10/Mines Scavenger-Mutant | -10/Exiles Scavenger-Mutant | -9/Mines Resources | -11 -10 -10 -10 -9 ----------- Run | Yrd Mat Min Exi Min Matter Collected 944 | 222 393 329 . . Remotely . | . . . . . Salvage Created 437 | 14 317 106 . . Parts 29 | 5 12 12 . . Haulers Intercepted 1 | . 1 . . . Recyclers Shooed . | . . . . . Parts Field Recycled . | . . . . . Retrieved Matter . | . . . . . Parts Self-Destructed . | . . . . . Prevented . | . . . . . Kills | -11 -10 -10 -10 -9 ------- Run | Yrd Mat Min Exi Min Combat Hostiles Destroyed 14 | . 7 7 . . Guns 7 | . 2 5 . . Cannons 7 | . 5 2 . . Classes Destroyed 5 | 1 3 1 . . Tunneler 1 | 1 . . . . Hauler 1 | . 1 . . . Operator 1 | . 1 . . . Swarmer 7 | . . 7 . . Grunt 7 | . 7 . . . Best Kill Streak 3 | 1 2 3 . . Combat Bots Only 3 | . 2 3 . . Max Kills in Single Turn 1 | 1 1 1 . . Gunslinging . | . . . . . Exploded . | . . . . . Melee . | . . . . . Uniques/NPCs Destroyed . | . . . . . Combat | -11 -10 -10 -10 -9 -------- Run | Yrd Mat Min Exi Min Hostile Shots Fired 128 | . 54 50 . 24 Missed 25 | . 10 6 . 9 Hits 103 | . 44 44 . 15 Projectile 103 | . 44 44 . 15 Critical Strikes 4 | . 4 . . . Damage Taken 1078 | . 606 359 . 113 Core 252 | . 151 89 . 12 Absorbed by Shields . | . . . . . Core Remaining (%) 100 | 100 . . . . Volleys Fired 74 | 10 41 18 . 5 Largest 2 | 2 2 2 . 2 Hottest 70 | 60 70 70 . 40 Shots Fired 147 | 20 82 35 . 10 Gun 106 | 20 45 31 . 10 Cannon 41 | . 37 4 . . Launcher . | . . . . . Special . | . . . . . Kinetic 104 | 10 62 22 . 10 Thermal 13 | . . 13 . . Explosive . | . . . . . Electromagnetic 30 | 10 20 . . . Robot Hit Streak 13 | 3 10 13 . 1 Robot Miss Streak 3 | 3 3 3 . 2 Penetration Max . | . . . . . Secondary Targets 1 | . . 1 . . Max Gunslinging Chain 1 | . . 1 . . Shots Hit Robots 92 | 10 58 21 . 3 Core Hits 30 | 1 19 10 . . Critical Kills . | . . . . . Critical Parts Destroyed . | . . . . . Critical Strikes . | . . . . . Melee Attacks 1 | . 1 . . . Impact . | . . . . . Slashing 1 | . 1 . . . Piercing . | . . . . . Sneak Attacks . | . . . . . Combat Hostiles . | . . . . . Follow-up Attacks . | . . . . . Damage Inflicted 1185 | 94 813 257 . 21 Guns 648 | 94 334 199 . 21 Cannons 537 | . 479 58 . . Explosions . | . . . . . Melee . | . . . . . Ramming . | . . . . . Kinetic 853 | 41 657 134 . 21 Thermal 123 | . . 123 . . Explosive . | . . . . . Electromagnetic 209 | 53 156 . . . Impact . | . . . . . Slashing . | . . . . . Piercing . | . . . . . Highest Corruption 4 | . 4 4 4 4 Average Corruption 3 | . 3 4 4 4 Corruption Purged . | . . . . . Corruption Blocked . | . . . . . Effects 30 | . 1 19 9 1 Message Errors 8 | . 1 5 1 1 Matter Fused 5 | . . 2 3 . Heat Flow Errors 2 | . . . 2 . Energy Discharges 7 | . . 6 1 . Parts Fused 1 | . . 1 . . Data Loss (minor) 4 | . . 3 1 . Misfires 1 | . . 1 . . Alerts 1 | . . . 1 . Weapon Failures 1 | . . 1 . . Overload Shots . | . . . . . Overflow Damage . | . . . . . Projectiles . | . . . . . Explosions . | . . . . . Melee . | . . . . . Knockbacks 10 | . 9 1 . . Impact . | . . . . . Kinetic 7 | . 6 1 . . Secondary 3 | . 3 . . . Self-Inflicted Damage . | . . . . . Shots . | . . . . . Rammed . | . . . . . Targets Rammed . | . . . . . Kicked . | . . . . . Crushed . | . . . . . Highest Temperature 223 | 40 191 110 223 6 Average Temperature 64 | 22 75 44 106 4 Received Heat Transfer 417 | . 417 . . . Siege Activations . | . . . . . Martial Activations . | . . . . . Shielding Activations . | . . . . . Robots Disrupted . | . . . . . Combat Hostiles . | . . . . . Robots Corrupted . | . . . . . Combat Hostiles . | . . . . . Parts Fried 1 | . 1 . . . Impact Corruptions . | . . . . . Robots Melted . | . . . . . Combat Hostiles . | . . . . . Parts Melted 1 | . . 1 . . Heat Transferred 333 | . . 333 . . Parts Sabotaged . | . . . . . Parts Stolen . | . . . . . Parts Stripped . | . . . . . Power Chain Reactions . | . . . . . Alert | -11 -10 -10 -10 -9 ------- Run | Yrd Mat Min Exi Min Maximum Alert Level . | . . . . . Low Security (%) 100 | 100 100 100 . 100 Level 1 . | . . . . . Level 2 . | . . . . . Level 3 . | . . . . . Level 4 . | . . . . . Level 5 . | . . . . . High Security . | . . . . . Max Security . | . . . . . Peak Influence 65 | 5 65 60 . . Initial 3 | . 3 . . . Average 14 | . 20 10 . . Influence Increases 400 | 5 235 160 . . Destroy 0b10 Robot/C 280 | . 140 140 . . Destroy 0b10 Robot/NC 15 | 5 10 . . . Destroy Leader 62 | . 42 20 . . Successful Hack 13 | . 13 . . . Disable Machine 15 | . 15 . . . Lose Combat Pursuer 15 | . 15 . . . Influence Decreases 400 | . 240 160 . . Entered New Map 2 | . 2 . . . Time Decay 368 | . 218 150 . . Lost Part 30 | . 20 10 . . Squads Dispatched . | . . . . . Investigation . | . . . . . Extermination . | . . . . . Reinforcement . | . . . . . Assault . | . . . . . Garrison . | . . . . . Intercept . | . . . . . Searches Triggered . | . . . . . Construction Impeded . | . . . . . Haulers Reinforced . | . . . . . Active Scanning Responses . | . . . . . Cargo Convoy Interrupts . | . . . . . Stealth | -11 -10 -10 -10 -9 --------- Run | Yrd Mat Min Exi Min Distress Signals 1 | . 1 . . . Communications Jammed . | . . . . . Distress Signals . | . . . . . Times Spotted 29 | . 19 7 . 3 Peak Tracking Total 4 | . 4 3 . 3 Tactical Retreats 1 | . 1 . . . Traps | -11 -10 -10 -10 -9 ------- Run | Yrd Mat Min Exi Min Traps Triggered 2 | . 2 . . . Indirectly . | . . . . . Trap Hack Attempts . | . . . . . Triggered . | . . . . . Disarmed . | . . . . . Reprogrammed . | . . . . . Reused . | . . . . . Traps Extracted . | . . . . . Installed . | . . . . . Triggered . | . . . . . Machines | -11 -10 -10 -10 -9 ---------- Run | Yrd Mat Min Exi Min Machines Disabled 1 | . 1 . . . Max in Single Turn 1 | . 1 . . . Machines Repaired . | . . . . . Machines Dismantled . | . . . . . Machines Sabotaged . | . . . . . Overloaded Fab Kills . | . . . . . Hacking | -11 -10 -10 -10 -9 --------- Run | Yrd Mat Min Exi Min Machines Accessed 5 | . 3 . 2 . Terminals 3 | . 3 . . . Fabricators . | . . . . . Repair Stations . | . . . . . Recycling Units . | . . . . . Scanalyzers . | . . . . . Garrison Access . | . . . . . Total Hacks 33 | . 9 . 24 . Successful 27 | . 3 . 24 . Failed 5 | . 5 . . . Catastrophic 1 | . 1 . . . Database Lockouts 1 | . 1 . . . Manual 7 | . 6 . 1 . Terminals 9 | . 9 . . . Fabricators . | . . . . . Repair Stations . | . . . . . Recycling Units . | . . . . . Scanalyzers . | . . . . . Garrison Access . | . . . . . Terminal Hacks 27 | . 3 . 24 . Record 23 | . . . 23 . Robot Analysis 1 | . 1 . . . Prototype ID Bank 1 | . 1 . . . Branch Access Points 1 | . 1 . . . Proto ID Catalog 1 | . . . 1 . Fabricator Hacks . | . . . . . Repair Station Hacks . | . . . . . Recycling Unit Hacks . | . . . . . Scanalyzer . | . . . . . Garrison Access Hacks . | . . . . . Unauthorized Hacks . | . . . . . Terminals . | . . . . . Fabricators . | . . . . . Repair Stations . | . . . . . Recycling Units . | . . . . . Scanalyzers . | . . . . . Garrison Access . | . . . . . Data Cores Recovered 1 | . 1 . . . Used . | . . . . . Hacking Detections 1 | . 1 . . . Full Trace Events . | . . . . . Feedback Events . | . . . . . Feedback Blocked . | . . . . . Robot Schematics Acquired . | . . . . . Robots Built . | . . . . . Authchips . | . . . . . Time . | . . . . . Total Robot Build Rating . | . . . . . Part Schematics Acquired . | . . . . . Parts Built . | . . . . . Authchips . | . . . . . Time . | . . . . . Total Part Build Rating . | . . . . . Parts Repaired . | . . . . . Time . | . . . . . Parts Recycled . | . . . . . Recycled Matter . | . . . . . Retrieved Matter . | . . . . . Retrieved Components . | . . . . . Parts Scanalyzed . | . . . . . Part Schematics Acquired . | . . . . . Parts Damaged . | . . . . . Bothacking | -11 -10 -10 -10 -9 ------------ Run | Yrd Mat Min Exi Min Used RIF Installer . | . . . . . Robots Hacked . | . . . . . Non-combat . | . . . . . Combat . | . . . . . Robot Hacks Applied . | . . . . . Relay Couplers Released . | . . . . . Fabnet Peak Effective % . | . . . . . Robots Rewired . | . . . . . Allies Hacked . | . . . . . Hacks Repelled . | . . . . . Allies | -11 -10 -10 -10 -9 -------- Run | Yrd Mat Min Exi Min Total Allies . | . . . . . Largest Group . | . . . . . Highest-Rated Group . | . . . . . Highest-Rated Ally . | . . . . . Total Orders . | . . . . . Ally Attacks . | . . . . . Total Damage . | . . . . . Kills . | . . . . . Allies Corrupted . | . . . . . Allies Melted . | . . . . . Intel | -11 -10 -10 -10 -9 ------- Run | Yrd Mat Min Exi Min Active Infowar (turns) 1830 | 8 677 856 289 . Seismic 1830 | 8 677 856 289 . Robot Analysis Total 1 | . 1 . . . Derelict Logs Recovered 3 | . . 3 . . Drone Launches . | . . . . . Drone Recoveries . | . . . . . Exploration | -11 -10 -10 -10 -9 ------------- Run | Yrd Mat Min Exi Min Turns Passed 2095 | 95 677 856 453 14 Spaces Moved 1085 | 54 413 385 233 . Core 1 | 1 . . . . Treads 379 | . . 259 120 . Legs . | . . . . . Wheels 705 | 53 413 126 113 . Hover . | . . . . . Flight . | . . . . . Fastest Speed 50 | 50 95 140 140 . Average Speed 163 | 91 115 207 191 . Slowest Speed 240 | 95 140 240 240 . Overloaded Moves . | . . . . . Propulsion Burnouts . | . . . . . Robots Hopped . | . . . . . Potential Cave-ins . | . . . . . Cave-ins Triggered . | . . . . . Exploration Rate (%) 44 | 5 59 90 60 6 Regions Visited 4 Branch Regions 3 Pre-discovered Areas 2 | . . 1 1 . Known Exits Taken 1 | . 1 . . . Unknown Exits Taken 3 | 1 . 1 1 . Scrap Searched 1 | . . 1 . . Spaces Dug . | . . . . . Terrain Destroyed . | . . . . . Melee . | . . . . . Projectile . | . . . . . AOE . | . . . . . Terrain Rammed . | . . . . . Walls Destroyed . | . . . . . Machines Disabled . | . . . . . Actions | -11 -10 -10 -10 -9 --------- Run | Yrd Mat Min Exi Min Total 1273 | 77 534 413 242 7 Wait 58 | . 58 . . . Move 1081 | 53 412 384 232 . Hop . | . . . . . Pick Up 25 | 6 12 6 1 . Fast Attach 7 | 7 . . . . Attach 7 | . 3 2 . 2 Detach 1 | . . . 1 . Swap 9 | 1 5 1 2 . Drop 10 | . 2 2 6 . Fire 74 | 10 41 18 . 5 Melee 1 | . 1 . . . Ram . | . . . . . Kick . | . . . . . Crush . | . . . . . Escape Stasis . | . . . . . Rewire . | . . . . . Trap . | . . . . . Miscellaneous . | . . . . . Route ------- -11/Scrapyard -10/Materials -10/Mines (discovered 3 exits: *Mat x2 / *Exi) -10/Exiles -9/Mines History --------- Turn | Location | Event 23 | -11/Scrapyard | Discovered new exit (range 16) 96 | -11/Scrapyard | Entered Materials 120 | -10/Materials | Identified exit to Mines 124 | -10/Materials | Central database locked down 315 | -10/Materials | Build established: Mutant 532 | -10/Materials | Core integrity fell below 50% 773 | -10/Materials | Entered Mines 835 | -10/Mines | Met a Derelict bent on vengeance 992 | -10/Mines | Core integrity fell below 20% 1182 | -10/Mines | Identified exit to Materials 1287 | -10/Mines | Build established: Scavenger-Mutant 1354 | -10/Mines | Learned Materials interactive machine intel 1362 | -10/Mines | Discovered exit to Materials (range 9) 1617 | -10/Mines | Deemed a non-threat by the Exiles lab entrance 1619 | -10/Mines | Discovered new exit (range 5) 1629 | -10/Mines | Entered Exiles 1693 | -10/Exiles | Met 8R-AWN 1736 | -10/Exiles | Met EX-HEX 1810 | -10/Exiles | Met EX-BIN 1837 | -10/Exiles | Aligned with FarCom system 1839 | -10/Exiles | Given EX-Vault access code 1904 | -10/Exiles | Opened EX-Vault 1924 | -10/Exiles | Found Army-in-a-Box 1953 | -10/Exiles | Warned to stay clear of 0b10 Research branches 2002 | -10/Exiles | Met EX-DEC 2020 | -10/Exiles | Learned location of Zion (-7) 2068 | -10/Exiles | Discovered new exit (range 10) 2082 | -10/Exiles | Left Exiles lab with Army-in-a-Box 2082 | -10/Exiles | Entered Mines 2096 | -9/Mines | Destroyed by S-10 Pest with Light Assault Rifle Last Messages --------------- >>Record "MSG004795-02" I just repaired it not long ago, I think someone on the outside is tampering with our system. --AM-PHS >>Record "MSG004795-01" Could someone repair the Mines activity scanner? It seems to fail sometimes, and when it does we can't send 8R-AWN out on exploratory runs. >>Record "MSG004964-01" Who left my Assembled plushie in the Analyzer again?! I'm not erasing this message until I get an answer. --BIN 02055_ XYC7CKCQ7Z9,K,WK6 ML4HPHB#XDR|LA 02068_ EXIT=FOUND LOCATION=UNKNOWN GOAL=ESCAPE 02082_ Receiving FarCom transmissions... 02090_ Lgt. Ion Engine destroyed. 02091_ BRWYWVGD XXUVPS9E WD Map ----- +----------------------------------------------------+ | ????????????????????????????????? | | ????????????????????????????????? | | ????????????????????????????????? | | ????????????????????????????????? | | ????????????????????????????????? | | ????????????????????????????????? | | ????????????????????????????????? | | ????????????????????????????????? | | ????????????????????????????????? | | ????????????????????????????????? | | ????????????????????????????????? | | ????????????????????????????????? | | ????????????????????????????????? | | ????????????????????????????????? | | ????????????????????????????????? | | ????????????????????????????????? | | ????????????????????????????????? | | ????????????????????????????????? | | ????????????????????????????????? | | ??????????###??????? ??????????? | | ?????????# ###### ???????????? | | ????????? ?????????????? | | ????????? ???????????????? | | ???????## #?????????????????? | | ????#### ##????????????????? | | ???# @ #????????????????? | | ??# #???????????????? | | ??# #???????????????? | | ??## #??????????????? | | ???## #??????????????? | | ????# ## s #?????????????? | | ????## ##?# s s #????????????? | | ?????####????# #????????????? | | ??????????????# #????????????? | | ????????????????####????????????? | | ????????????????????????????????? | | | | | | | | | | | | | | | | | | | | | | | | | | | | | +----------------------------------------------------+ Best States ------------- Heat Dissipation 25 Energy Generation 10 Energy Capacity 250 Matter Stores 300 Matter Capacity 300 Sight Range 16 Terrain Scan Density 10 Armor Coverage 150 Evasion (%) 42 Recoil Reduction 2 Item Schematics ----------------- None Robot Schematics ------------------ None Fabricated ------------ Nothing Repaired ---------- Nothing Alien Tech Used ----------------- None Achievements -------------- None Challenges ------------ None Game ------ Seed AluminumTractorShovel Manual? 0 Play Time 00:10:01 Cumulative 105.6 hours Start 2025.08.08 @ 14:51:27 End 2025.08.08 @ 15:01:33 Sessions 1 Manual Loads 0 Difficulty Rogue Special Mode None Game No. 131 Rogue 131 Adventurer 0 Explorer 0 Win Type - Total 0 Types 0/0/0/0/0/0/0/0/0/0 Lore% 63 Gallery% 46 Achievement% 44 Wizard Run 0 Options --------- Layout 1 ASCII 0 Keyboard 0 Movement Arrows Keybinds 0 Fullscreen 1 Font 24/Smallcaps Map View 50x35 Zoom Use 0% Tactical HUD 1 Map Filters NONE Filters NONE Steam 1 RUN: 06210a2f-c463-41b8-8cb8-6fd508c4c26b